bitfinex-derivatives/quotes_BNBF0:USTF0_20250406
["timestamp","ask_amount","ask_price","bid_price","bid_amount"]
[1743905360256,0.2940344,592.08,591.29,0.3382435]
[1743905360454,0.2940344,592.08,591.3,0.29247234]
[1743905361564,0.2940344,592.08,591.32,1.26423726]
[1743905361865,0.717,592.11,591.33,0.29247234]
[1743905362063,0.29403191,592.07,591.33,0.29247234]
[1743905363866,0.29403191,592.07,591.34,0.29246922]
[1743905364058,0.29403191,592.07,591.33,0.29246922]
[1743905364662,0.652,592.14,591.33,0.29246922]
[1743905365073,0.29402446,592.06,591.33,0.29246922]
[1743905365269,0.652,592.14,591.33,0.29246922]
[1743905366169,0.652,592.14,591.36,1.26423726]
[1743905366369,0.652,592.14,591.37,0.29246922]
[1743905366569,0.29402446,592.13,591.37,0.29246922]
[1743905367682,0.767,592.12,591.37,0.29246922]
[1743905370879,0.767,592.12,591.38,0.29246922]
[1743905371070,0.29402446,592.11,591.39,0.29246922]
[1743905371269,0.29402446,592.11,591.4,0.29246922]
[1743905371574,0.29402446,592.11,591.41,0.29246922]
[1743905371779,0.29402446,592.11,591.3,0.29246922]
[1743905371973,0.29402446,592.11,591.31,0.29246922]
[1743905372172,0.29402446,592.11,591.3,0.29246922]
[1743905372370,0.29402446,592.11,591.31,0.29246922]
[1743905372674,0.29402446,592.11,591.3,0.29246922]
[1743905372873,0.29402446,592.11,591.31,0.29246922]
[1743905373073,0.29402446,592.11,591.3,0.29246922]
[1743905373272,0.29402446,592.11,591.31,0.29246922]
[1743905373471,0.29402446,592.11,591.3,0.29246922]
[1743905373670,0.767,592.12,591.31,0.29246922]
[1743905373870,0.767,592.12,591.3,1.55670648]
[1743905374074,0.767,592.12,591.3,1.26423726]
[1743905374275,0.767,592.12,591.31,0.29247042]
[1743905374981,0.29402694,592.11,591.31,0.29247042]
[1743905376677,0.767,592.12,591.31,0.29247042]
[1743905376978,0.29402694,592.1,591.31,0.29247042]
[1743905377377,0.29402694,592.1,591.3,1.26423726]
[1743905377578,0.29402694,592.1,591.31,0.29246241]
[1743905378877,0.29402694,592.1,591.3,1.26423726]
[1743905379077,0.29402694,592.1,591.31,0.29246247]
[1743905379678,0.767,592.12,591.31,0.29246247]
[1743905379982,0.29401701,592.09,591.31,0.29246247]
[1743905380479,0.29401701,592.09,591.41,1.26423726]
[1743905380680,0.29401701,592.09,591.42,0.29246247]
[1743905382683,0.767,592.12,591.42,0.29246247]
[1743905382983,0.29400335,592.08,591.42,0.29246247]
[1743905383675,0.29400335,592.08,591.43,0.29246247]
[1743905383878,0.29400335,592.08,591.4,1.26423726]
[1743905384078,0.29400335,592.08,591.44,0.29246367]
[1743905384382,0.94000335,592.08,591.45,0.29246367]
[1743905384583,0.94000335,592.08,591.41,0.29246367]
[1743905384782,0.94000335,592.08,591.42,0.29246367]
[1743905384982,0.94000335,592.08,591.41,0.29246367]
[1743905385184,0.94000335,592.08,591.42,0.29246367]
[1743905385378,0.94000335,592.08,591.41,0.29246367]
[1743905385580,0.94000335,592.08,591.42,0.29246367]
[1743905385778,0.646,592.08,591.41,0.29246367]
[1743905385984,0.29400956,592.07,591.42,0.29246367]
[1743905386284,0.29400956,592.07,591.43,0.29246367]
[1743905386476,0.29400956,592.07,591.41,0.29246367]
[1743905386780,0.29400956,592.07,591.42,0.29246367]
[1743905386982,0.29400956,592.07,591.43,0.29246367]
[1743905387182,0.29400956,592.07,591.41,0.29246367]
[1743905387383,0.29400956,592.07,591.42,0.29246367]
[1743905387582,0.29400956,592.07,591.41,0.29246367]
[1743905388084,0.29400956,592.07,591.4,0.29246367]
[1743905388678,0.646,592.08,591.4,0.29246367]
[1743905388983,0.2940108,592.07,591.4,0.29246367]
[1743905390478,1.0750108,592.07,591.39,1.26423726]
[1743905390682,1.0750108,592.07,591.4,0.29246433]
[1743905391578,1.0750108,592.07,591.4,1.55670159]
[1743905391882,1.0750108,592.07,591.41,0.29246433]
[1743905392077,1.0750108,592.07,591.4,1.26423726]
[1743905392279,1.0750108,592.07,591.41,0.29246443]
[1743905394686,0.781,592.07,591.41,0.29246443]
[1743905394985,1.0750108,592.07,591.41,0.29246443]
[1743905396689,1.0750108,592.07,591.41,1.55670169]
[1743905396889,1.0750108,592.07,591.41,1.26423726]
[1743905397089,1.0750108,592.07,591.42,0.29246761]
[1743905397691,0.781,592.07,591.42,0.29246761]
[1743905397886,1.07500956,592.07,591.42,0.29246761]
[1743905399089,1.07500956,592.07,591.41,0.29246761]
[1743905399990,1.07500956,592.07,591.4,1.26423726]
[1743905400691,0.781,592.07,591.4,1.26423726]
[1743905400991,0.29402322,592.06,591.4,1.26423726]
[1743905401996,0.29402322,592.06,591.29,0.3382435]
[1743905402194,0.29402322,592.06,591.3,0.29248262]
[1743905402993,0.29402322,592.06,591.29,0.3382435]
[1743905403189,0.29402322,592.06,591.31,0.29249016]
[1743905403392,0.29402322,592.06,591.3,0.29249016]
[1743905403688,0.781,592.07,591.29,0.3382435]
[1743905403893,0.781,592.07,591.3,0.29249042]
[1743905404094,0.29403688,592.05,591.3,0.29249042]
[1743905404795,0.29403688,592.05,591.29,0.3382435]
[1743905404995,0.29403688,592.05,591.3,0.29248773]
[1743905406599,0.646,592.08,591.3,0.29248773]
[1743905406999,0.29403564,592.04,591.3,0.29248773]
[1743905407901,0.29403564,592.04,591.29,0.3382435]
[1743905408094,0.29403564,592.04,591.31,0.29247894]
[1743905408293,0.29403564,592.04,591.3,0.29247894]
[1743905408494,0.29403564,592.04,591.31,0.29247894]
[1743905408694,0.842,592.03,591.3,0.29247894]
[1743905408895,0.842,592.03,591.31,0.29247894]
[1743905409098,0.842,592.03,591.32,0.29247894]
[1743905409297,0.842,592.03,591.3,0.29247894]
[1743905409594,0.842,592.03,591.31,0.29247894]
[1743905409901,0.842,592.03,591.32,0.29247894]
[1743905410199,0.29404185,592.02,591.33,0.29247894]
[1743905410401,0.29404185,592.02,591.3,0.29247894]
[1743905410599,0.29404185,592.02,591.31,0.29247894]
[1743905410804,0.29404185,592.02,591.3,0.29247894]
[1743905411099,0.29404185,592.02,591.31,0.29247894]
[1743905411400,0.29404185,592.02,591.3,0.29247894]
[1743905411699,0.29404185,592.02,591.32,0.29247894]
[1743905411902,0.29404185,592.02,591.31,0.29247894]
[1743905412102,0.29404185,592.02,591.33,0.29247894]
[1743905412300,0.29404185,592.02,591.34,0.29247894]
[1743905412497,0.29404185,592.02,591.3,0.29247894]
[1743905412701,0.842,592.03,591.31,0.29247894]
[1743905412903,0.29404185,592.02,591.29,0.3382435]
[1743905413097,0.29404185,592.02,591.3,0.29247604]
[1743905415202,0.29404185,592.02,591.32,1.26423726]
[1743905415404,0.29404185,592.02,591.33,0.29247604]
[1743905415596,0.842,592.03,591.33,0.29247604]
[1743905415896,0.29403812,592.02,591.33,0.29247604]
[1743905416303,0.29403812,592.02,591.34,0.29247893]
[1743905416603,0.29403812,592.02,591.35,0.29247893]
[1743905416903,0.29403812,592.02,591.36,1.55671619]
[1743905417101,0.29403812,592.02,591.37,0.29247893]
[1743905418705,0.842,592.03,591.37,0.29247893]
[1743905419005,0.29403315,592.02,591.37,0.29247893]
[1743905421304,0.29403315,592.02,591.36,0.29247893]
[1743905421506,0.29403315,592.02,591.37,0.29247893]
[1743905421809,0.842,592.03,591.38,0.29247893]
[1743905422006,0.2940344,592.02,591.39,0.29247893]
[1743905422308,0.2940344,592.02,591.4,0.29247893]
[1743905422508,0.2940344,592.02,591.36,0.29247893]
[1743905423410,0.2940344,592.02,591.36,1.26423726]
[1743905423610,0.2940344,592.02,591.37,0.29248755]
[1743905424713,0.646,592.08,591.37,0.29248755]
[1743905425615,0.646,592.08,591.35,0.29248755]
[1743905426016,0.29402943,592.07,591.35,0.29248755]
[1743905427516,1.06802943,592.07,591.35,0.29248755]
[1743905427717,0.774,592.07,591.35,0.29248755]
[1743905428017,0.29403067,592.06,591.35,0.29248755]
[1743905428217,0.29403067,592.06,591.34,0.29248755]
[1743905428517,0.29403067,592.06,591.35,0.29248755]
[1743905428714,0.29403067,592.06,591.34,0.29248755]
[1743905430120,0.29403067,592.06,591.34,1.55672481]
[1743905430322,0.29403067,592.06,591.35,0.29248755]
[1743905430717,0.774,592.07,591.34,1.26423726]
[1743905430920,1.06801825,592.07,591.35,0.29246341]
[1743905432626,1.06801825,592.07,591.34,1.26423726]
[1743905432821,1.06801825,592.07,591.36,0.29246306]
[1743905433026,1.06801825,592.07,591.37,0.29246306]
[1743905433326,1.06801825,592.07,591.31,0.29246306]
[1743905433526,1.06801825,592.07,591.32,0.29246306]
[1743905433727,0.774,592.07,591.31,0.29246306]
[1743905433922,1.06802322,592.07,591.32,0.29246306]
[1743905434124,1.06802322,592.07,591.31,0.29246306]
[1743905434326,1.06802322,592.07,591.32,0.29246306]
[1743905434529,1.06802322,592.07,591.31,0.29246306]
[1743905435629,1.06802322,592.07,591.3,0.29246306]
[1743905436637,0.774,592.07,591.3,0.29246306]
[1743905436926,1.06802446,592.07,591.3,0.29246306]
[1743905437745,1.81502446,592.07,591.3,0.29246306]
[1743905439329,1.81502446,592.07,591.29,0.3382435]
[1743905439530,1.81502446,592.07,591.3,0.29247176]
[1743905439732,1.521,592.07,591.3,0.29247176]
[1743905440033,1.81502446,592.07,591.3,0.29247176]
[1743905440935,1.81502446,592.07,591.29,0.3382435]
[1743905441229,1.81502446,592.07,591.3,0.29247226]
[1743905442636,1.521,592.07,591.3,0.29247226]
[1743905442936,1.81502446,592.07,591.3,0.29247226]
[1743905445737,1.521,592.07,591.3,0.29247226]
[1743905446039,1.81502446,592.07,591.3,0.29247226]
[1743905448636,1.521,592.07,591.3,0.29247226]
[1743905449140,1.81502446,592.07,591.3,0.29247226]
[1743905449337,1.81502446,592.07,591.29,0.3382435]
[1743905449338,1.81502446,592.07,591.31,0.2924789]
[1743905449536,1.81502446,592.07,591.3,0.2924789]
[1743905450841,1.81502446,592.07,591.29,0.3382435]
[1743905451040,1.81502446,592.07,591.3,0.29247834]
[1743905451636,1.521,592.07,591.3,0.29247834]
[1743905452341,1.521,592.07,591.29,0.3382435]
[1743905452542,1.521,592.07,591.3,0.29247862]
[1743905453140,1.81502446,592.07,591.31,0.29247892]
[1743905453341,1.81502446,592.07,591.3,0.29247892]
[1743905453541,1.81502446,592.07,591.31,0.29247892]
[1743905453742,1.81502446,592.07,591.3,0.29247892]
[1743905453940,1.81502446,592.07,591.31,0.29247892]
[1743905454140,1.81502446,592.07,591.32,0.29247892]
[1743905454339,1.81502446,592.07,591.3,0.29247892]
[1743905454638,1.521,592.07,591.31,0.29247892]
[1743905454840,1.521,592.07,591.32,0.29247892]
[1743905455043,1.81502446,592.07,591.32,0.29247892]
[1743905455743,1.81502446,592.07,591.31,1.26423726]
[1743905455946,1.81502446,592.07,591.32,0.29247783]
[1743905456645,1.81502446,592.07,591.3,0.29247783]
[1743905457647,1.521,592.07,591.3,0.29247783]
[1743905457946,1.81502446,592.07,591.3,0.29247783]
[1743905459144,1.81502446,592.07,591.29,0.3382435]
[1743905459345,1.81502446,592.07,591.3,0.29248765]
[1743905460844,1.521,592.07,591.3,0.29248765]
[1743905461848,1.521,592.07,591.29,0.3382435]
[1743905462050,0.29403688,592.06,591.3,0.29249075]
[1743905463651,0.747,592.07,591.29,0.3382435]
[1743905463850,0.33764392,592.34,591.3,0.29249056]
[1743905464051,0.29403688,592.05,591.3,0.29249056]
[1743905464266,0.33764392,592.34,591.3,0.29249056]
[1743905465151,0.99094623,592.33,591.3,0.29249056]
[1743905465348,0.33765532,592.32,591.31,0.29249101]
[1743905465552,0.33765532,592.32,591.3,0.29249101]
[1743905465847,0.33765532,592.32,591.29,0.3382435]
[1743905465848,0.33765532,592.32,591.31,0.29249101]
[1743905466045,0.33765532,592.32,591.3,0.29249101]
[1743905466246,0.33765532,592.32,591.31,0.29249101]
[1743905466548,0.33765532,592.32,591.32,0.29249101]
[1743905466752,0.33765532,592.32,591.29,0.3382435]
[1743905466753,0.33765532,592.32,591.3,0.29249101]
[1743905466948,0.29400459,592.31,591.31,0.29249103]
[1743905467147,0.33766672,592.3,591.3,0.29249103]
[1743905467747,0.712,592.29,591.3,0.29249103]
[1743905467952,0.33767812,592.28,591.3,0.29249103]
[1743905470154,0.29400956,592.27,591.3,0.29249103]
[1743905470357,0.33768952,592.26,591.31,0.292495]
[1743905470653,0.33768952,592.26,591.32,0.292495]
[1743905470853,0.33768952,592.26,591.3,0.292495]
[1743905471050,0.33768952,592.26,591.31,0.292495]
[1743905471254,0.33768952,592.26,591.3,0.292495]
[1743905471457,0.33768952,592.26,591.33,1.26423726]
[1743905471655,0.33768952,592.26,591.34,0.292495]
[1743905471855,0.33768952,592.26,591.33,1.26423726]
[1743905472053,0.33768952,592.26,591.34,0.29249143]
[1743905472956,0.29400707,592.25,591.34,0.29249143]
[1743905473559,0.6317023,592.25,591.34,0.29249143]
[1743905475758,0.6317023,592.25,591.33,1.26423726]
[1743905476760,0.33770093,592.24,591.33,1.26423726]
[1743905477862,0.33770093,592.24,591.17,0.29400707]
[1743905478065,0.33770093,592.24,591.18,0.29251342]
[1743905478956,0.29404682,592.23,591.19,0.29251342]
[1743905479155,0.33771233,592.22,591.14,0.29251342]
[1743905479360,0.33771233,592.22,591.15,0.29251342]
[1743905479560,0.33771233,592.22,591.14,0.29251342]
[1743905479757,0.33771233,592.22,591.15,0.29251342]
[1743905479960,0.33771233,592.22,591.14,0.29251342]
[1743905481960,0.29405676,592.21,591.11,0.29251342]
[1743905482261,0.33772374,592.2,591.12,0.29251342]
[1743905482456,0.33772374,592.2,591.11,0.29251342]
[1743905483963,0.33772374,592.2,591.2,1.26423726]
[1743905484162,0.33772374,592.2,591.21,0.29251342]
[1743905486168,1.06572374,592.2,591.21,0.29251342]
[1743905487065,1.06572374,592.2,591.2,1.26423726]
[1743905487265,1.06572374,592.2,591.21,0.29253054]
[1743905488069,0.2940493,592.19,591.21,0.29253054]
[1743905488266,0.33773514,592.18,591.21,0.29253054]
[1743905488463,0.33773514,592.18,591.2,0.29253054]
[1743905490465,0.33773514,592.18,591.17,0.29253054]
[1743905490666,0.33773514,592.18,591.16,1.26423726]
[1743905491067,0.29405552,592.17,591.17,0.29252831]
[1743905494072,0.29405552,592.17,591.18,0.29252831]
[1743905494370,0.29405552,592.17,591.19,0.29252831]
[1743905494670,0.29405552,592.17,591.2,0.29252831]
[1743905494871,0.29405552,592.17,591.14,0.29252831]
[1743905495070,0.29405552,592.17,591.15,0.29252831]
[1743905495264,0.29405552,592.17,591.14,0.29252831]
[1743905495465,0.29405552,592.17,591.15,0.29252831]
[1743905495773,0.29405552,592.17,591.16,0.29252831]
[1743905495970,0.29405552,592.17,591.14,0.29252831]
[1743905496667,0.33773514,592.18,591.14,0.29252831]
[1743905496967,0.29406049,592.16,591.14,0.29252831]
[1743905499679,0.33773514,592.18,591.14,0.29252831]
[1743905499975,0.33773514,592.18,591.17,1.26423726]
[1743905500275,0.29406049,592.15,591.18,0.29252831]
[1743905505679,0.33773514,592.18,591.22,1.26423726]
[1743905505874,0.33773514,592.18,591.23,0.29252831]
[1743905506074,0.29405552,592.14,591.23,0.29252831]
[1743905507778,0.29405552,592.14,591.22,1.26423726]
[1743905507978,0.29405552,592.14,591.23,0.29253052]
[1743905508581,0.29405552,592.14,591.23,1.55676778]
[1743905508772,0.33773514,592.18,591.24,0.29253052]
[1743905509178,0.29404806,592.13,591.24,0.29253052]
[1743905510978,0.29404806,592.13,591.22,0.29253052]
[1743905511681,0.33773514,592.18,591.22,0.29253052]
[1743905512081,0.29405055,592.12,591.22,0.29253052]
[1743905513581,0.29405055,592.12,591.25,1.26423726]
[1743905513781,0.29405055,592.12,591.26,0.29253052]
[1743905514883,0.33773514,592.18,591.26,0.29253052]
[1743905515081,0.84904558,592.11,591.26,1.55676778]
[1743905515278,0.84904558,592.11,591.27,0.29253052]
[1743905515479,0.555,592.11,591.27,0.29253052]
[1743905516082,0.29404433,592.1,591.27,0.29253052]
[1743905516583,0.784,592.09,591.27,0.29253052]
[1743905516785,0.784,592.09,591.27,1.55676778]
[1743905516984,0.784,592.09,591.28,0.29253052]
[1743905517990,0.29405427,592.08,591.28,0.29253052]
[1743905521090,0.29405427,592.08,591.27,1.26423726]
[1743905521288,0.29405427,592.08,591.28,0.29252377]
[1743905521588,0.29405427,592.08,591.3,1.26423726]
[1743905521787,0.29405427,592.08,591.31,0.29252377]
[1743905523295,0.29405427,592.08,591.31,1.55676103]
[1743905523594,0.29405427,592.08,591.32,0.29252377]
[1743905523790,0.784,592.09,591.32,0.29252377]
[1743905524195,0.29403937,592.07,591.32,0.29252377]
[1743905525395,0.29403937,592.07,591.31,0.29252377]
[1743905525896,0.29403937,592.07,591.3,1.26423726]
[1743905526095,0.29403937,592.07,591.31,0.29252375]
[1743905526695,0.784,592.09,591.31,0.29252375]
[1743905528097,0.29404061,592.08,591.31,0.29252375]
[1743905528297,0.29404061,592.08,591.3,1.26423726]
[1743905528599,0.29404061,592.08,591.31,0.29252751]
[1743905529699,0.784,592.09,591.31,0.29252751]
[1743905530097,0.29404061,592.07,591.27,0.29252751]
[1743905530294,0.29404061,592.07,591.28,0.29252751]
[1743905530497,0.29404061,592.07,591.27,0.29252751]
[1743905530799,0.29404061,592.07,591.28,0.29252751]
[1743905530999,0.29404061,592.07,591.26,1.26423726]
[1743905531194,0.29404061,592.07,591.27,0.29252689]
[1743905531900,0.29404061,592.07,591.27,1.55676415]
[1743905532097,0.29404061,592.07,591.28,0.29252689]
[1743905532701,0.784,592.09,591.28,0.29252689]
[1743905533002,0.29404433,592.06,591.28,0.29252689]
[1743905535704,0.784,592.09,591.28,0.29252689]
[1743905536004,0.29404433,592.05,591.28,0.29252689]
[1743905537606,0.29404433,592.05,591.27,1.26423726]
[1743905537806,0.29404433,592.05,591.29,0.29252721]
[1743905538005,0.29404433,592.05,591.28,0.29252721]
[1743905538206,0.29404433,592.05,591.29,0.29252721]
[1743905538501,0.29404433,592.05,591.28,0.29252721]
[1743905538708,0.784,592.09,591.29,0.29252721]
[1743905539002,0.784,592.09,591.3,0.29252721]
[1743905539207,0.29404433,592.04,591.31,0.29252721]
[1743905539407,0.29404433,592.04,591.29,1.26423726]
[1743905539610,0.29404433,592.04,591.3,0.29252721]
[1743905541008,0.29404433,592.04,591.29,1.26423726]
[1743905541210,0.29404433,592.04,591.3,0.29252719]
[1743905541712,0.784,592.09,591.3,0.29252719]
[1743905543113,0.29404185,592.08,591.3,0.29252719]
[1743905544409,0.29404185,592.08,591.29,1.26423726]
[1743905544611,0.29404185,592.08,591.3,0.29252723]
[1743905544808,0.555,592.11,591.25,0.29252723]
[1743905545013,0.29404558,592.07,591.25,0.29252723]
[1743905546114,0.29404558,592.07,591.24,0.29252723]
[1743905546307,0.85804558,592.07,591.25,0.29252723]
[1743905546509,0.85804558,592.07,591.24,0.29252723]
[1743905547714,0.564,592.07,591.24,0.29252723]
[1743905548014,0.29405179,592.06,591.24,0.29252723]
[1743905548410,0.29405179,592.06,591.24,1.55676449]
[1743905548610,0.29405179,592.06,591.25,0.29252723]
[1743905550717,0.564,592.07,591.25,0.29252723]
[1743905551016,0.29405055,592.05,591.25,0.29252723]
[1743905551813,0.29405055,592.05,591.24,0.29252723]
[1743905553723,0.564,592.07,591.24,0.29252723]
[1743905554223,0.29405179,592.04,591.24,0.29252723]
[1743905554619,0.29405179,592.04,591.23,1.26423726]
[1743905554822,0.29405179,592.04,591.24,0.29253017]
[1743905556227,0.29405179,592.04,591.26,1.26423726]
[1743905556423,0.29405179,592.04,591.27,0.29253017]
[1743905556727,0.564,592.07,591.27,0.29253017]
[1743905557026,0.29404806,592.03,591.27,0.29253017]
[1743905557824,0.29404806,592.03,591.26,1.26423726]
[1743905558128,0.29404806,592.03,591.27,0.29252831]
[1743905558428,0.712,592.02,591.27,0.29252831]
[1743905559730,0.712,592.02,591.26,1.26423726]
[1743905559924,0.712,592.02,591.27,0.29252862]
[1743905560128,0.29405427,592.01,591.27,0.29252862]
[1743905562729,0.712,592.02,591.27,0.29252862]
[1743905563132,0.29405427,592.0,591.27,0.29252862]
[1743905564133,0.29405427,592.0,591.28,1.26423726]
[1743905564333,0.29405427,592.0,591.29,0.29252862]
[1743905565734,0.712,592.02,591.29,0.29252862]
[1743905566033,0.29405179,591.99,591.29,0.29252862]
[1743905566837,0.29405179,591.99,591.3,1.26423726]
[1743905567030,0.29405179,591.99,591.31,0.29252862]
[1743905568037,0.29405179,591.99,591.3,1.26423726]
[1743905568232,0.29405179,591.99,591.31,0.29252889]
[1743905568844,0.712,592.02,591.31,0.29252889]
[1743905569337,0.712,592.02,591.22,0.29252889]
[1743905569636,0.712,592.02,591.23,0.29252889]
[1743905569834,0.695,592.01,591.22,0.29252889]
[1743905570135,0.98906049,592.01,591.22,0.29252889]
[1743905571237,0.98906049,592.01,591.16,0.29252889]
[1743905571835,0.695,592.01,591.16,0.29252889]
[1743905572039,0.98906421,592.01,591.16,0.29252889]
[1743905574740,0.695,592.01,591.16,0.29252889]
[1743905575145,0.98906421,592.01,591.17,0.29253058]
[1743905575345,0.98906421,592.01,591.16,0.29253058]
[1743905575540,0.98906421,592.01,591.17,0.29253058]
[1743905575747,0.98906421,592.01,591.16,0.29253058]
[1743905575942,0.98906421,592.01,591.17,0.29253058]
[1743905576345,0.98906421,592.01,591.18,0.29253058]
[1743905576540,0.98906421,592.01,591.15,0.29253058]
[1743905576743,0.98906421,592.01,591.16,0.29253058]
[1743905576941,0.98906421,592.01,591.15,0.29253058]
[1743905577247,0.98906421,592.01,591.16,0.29253058]
[1743905577445,0.98906421,592.01,591.15,0.29253058]
[1743905577645,0.98906421,592.01,591.16,0.29253058]
[1743905577845,0.98906421,592.01,591.17,0.29253058]
[1743905578045,0.98906421,592.01,591.16,1.26423726]
[1743905578246,0.98906421,592.01,591.17,0.29253058]
[1743905578949,0.98906421,592.01,591.16,1.26423726]
[1743905579151,0.98906421,592.01,591.17,0.2925304]
[1743905580050,0.98906421,592.01,591.16,1.26423726]
[1743905580250,0.98906421,592.01,591.17,0.29252827]
[1743905580746,0.695,592.01,591.17,0.29252827]
[1743905581051,0.98906297,592.01,591.17,0.29252827]
[1743905581251,0.98906297,592.01,591.26,1.26423726]
[1743905581451,0.98906297,592.01,591.27,0.29252858]
[1743905582853,0.98906297,592.01,591.26,1.26423726]
[1743905583152,0.98906297,592.01,591.27,0.29252858]
[1743905583754,0.695,592.01,591.27,0.29252858]
[1743905583954,0.695,592.01,591.31,1.26423726]
[1743905584152,0.98905055,592.01,591.32,0.29252858]
[1743905584656,0.98905055,592.01,591.31,1.26423726]
[1743905584853,0.98905055,592.01,591.32,0.29252741]
[1743905586757,0.712,592.02,591.32,0.29252741]
[1743905587058,0.29404433,592.01,591.32,0.29252741]
[1743905587859,0.29404433,592.01,591.27,1.26423726]
[1743905588053,0.29404433,592.01,591.33,0.29252718]
[1743905588261,0.29404433,592.01,591.34,0.29252718]
[1743905588559,0.29404433,592.01,591.35,0.29252718]
[1743905588859,0.29404433,592.01,591.36,0.29252718]
[1743905589054,0.29404433,592.01,591.28,0.29252718]
[1743905589660,0.785,592.0,591.28,0.29252718]
[1743905591259,0.785,592.0,591.27,1.26423726]
[1743905591461,0.785,592.0,591.28,0.29253071]
[1743905593463,0.785,592.0,591.23,0.29253071]
[1743905593663,0.785,592.0,591.29,0.29253071]
[1743905593857,0.785,592.0,591.3,0.29253071]
[1743905594062,0.785,592.0,591.23,0.29253071]
[1743905594665,0.785,592.0,591.22,1.26423726]
[1743905594858,0.785,592.0,591.23,0.29255277]
[1743905595861,0.785,592.0,591.2,0.29255277]
[1743905596060,0.29407664,591.99,591.21,0.29255277]
[1743905596260,0.29407664,591.99,591.2,0.29255277]
[1743905596464,0.29407664,591.99,591.21,0.29254996]
[1743905596763,0.29407664,591.99,591.2,0.29254996]
[1743905596966,0.29407664,591.99,591.21,0.29254996]
[1743905597162,0.29407664,591.99,591.2,0.29254996]
[1743905597366,0.29407664,591.99,591.21,0.29254996]
[1743905597566,0.29407664,591.99,591.2,0.29254996]
[1743905598067,0.29407664,591.99,591.21,0.29255061]
[1743905598367,0.29407664,591.99,591.09,0.29255061]
[1743905598566,0.29407664,591.99,591.22,0.29255061]
[1743905598766,0.785,592.0,591.23,0.29255061]
[1743905598962,0.785,592.0,591.02,0.29255061]
[1743905599160,0.785,592.0,591.03,0.29255061]
[1743905599364,0.785,592.0,591.02,0.29255061]
[1743905599562,0.785,592.0,591.03,0.29255061]
[1743905599867,0.785,592.0,591.04,0.29255047]
[1743905600062,0.29410273,591.99,591.04,0.29410273]
[1743905600265,0.29410273,591.99,591.05,0.29255047]
[1743905601369,0.29410273,591.99,591.04,0.29410273]
[1743905601568,0.29410273,591.99,591.05,0.2925503]
[1743905601768,0.785,592.0,591.05,0.2925503]
[1743905601968,0.785,592.0,591.01,0.2925503]
[1743905602268,0.29410398,591.98,591.04,0.29410398]
[1743905602468,0.29410398,591.98,591.05,0.2925503]
[1743905603570,0.29410398,591.98,591.04,0.29410398]
[1743905603769,0.29410398,591.98,591.05,0.29255064]
[1743905604869,0.785,592.0,591.05,0.29255064]
[1743905605068,0.29410398,591.97,591.06,0.29255064]
[1743905605270,0.29410398,591.97,591.01,0.29255064]
[1743905605489,0.29410398,591.97,591.02,0.29255064]
[1743905605770,0.29410398,591.97,591.03,0.29255064]
[1743905605975,0.29410398,591.97,591.01,0.29255064]
[1743905606275,0.29410398,591.97,591.02,0.29255064]
[1743905606476,0.29410398,591.97,591.03,0.29255095]
[1743905606675,0.29410398,591.97,591.01,0.29255095]
[1743905606879,0.29410398,591.97,591.19,1.26423726]
[1743905607078,0.29410398,591.97,591.2,0.29255095]
[1743905608681,0.29410398,591.97,591.19,1.26423726]
[1743905608882,0.29410398,591.97,591.2,0.2925494]
[1743905609074,0.585,591.96,591.2,0.2925494]
[1743905609477,0.585,591.96,591.21,0.2925494]
[1743905609676,0.585,591.96,591.09,0.2925494]
[1743905609882,0.585,591.96,591.1,0.2925494]
[1743905610079,0.585,591.96,591.09,0.2925494]
[1743905611081,0.29409776,591.95,591.09,0.2925494]
[1743905611282,0.29409776,591.95,591.08,1.26423726]
[1743905611484,0.29409776,591.95,591.09,0.29254624]
[1743905613386,0.96609776,591.95,591.09,0.29254624]
[1743905613784,0.672,591.95,591.09,0.29254624]
[1743905614086,0.29410025,591.94,591.09,0.29254624]
[1743905614884,0.29410025,591.94,591.1,0.29254622]
[1743905615091,0.29410025,591.94,591.11,0.29254622]
[1743905615284,0.29410025,591.94,591.09,0.29254622]
[1743905615585,0.29410025,591.94,591.1,0.29254622]
[1743905615786,0.29410025,591.94,591.09,0.29254622]
[1743905615982,0.29410025,591.94,591.1,0.29254622]
[1743905616183,0.29410025,591.94,591.11,0.29254622]
[1743905616582,0.29410025,591.94,591.12,0.29254622]
[1743905616784,0.672,591.95,591.09,0.29254622]
[1743905617085,0.29410025,591.93,591.09,0.29254622]
[1743905617286,0.29410025,591.93,591.12,1.26423726]
[1743905617482,0.29410025,591.93,591.13,0.29254622]
[1743905618789,0.29410025,591.93,591.12,1.26423726]
[1743905618983,0.29410025,591.93,591.13,0.29254633]
[1743905619189,0.29410025,591.93,591.21,1.26423726]
[1743905619490,0.29410025,591.93,591.22,0.29254633]
[1743905619785,0.672,591.95,591.22,0.29254633]
[1743905621189,0.29408409,591.94,591.22,0.29254633]